[Event "Early-Titled-Tuesday-Blitz-January-16-2024"]
[Site "Chess.com"]
[Date "2024.01.16"]
[Round "4"]
[White "GMT4114"]
[Black "ClayK1ng"]
[Result "1-0"]
[WhiteElo "1990"]
[BlackElo "2291"]
[TimeControl "180+1"]
[EndTime "8:36:26 PST"]
[Termination "GMT4114 won by resignation"]

1. e4 {[%clk 0:03:00.9]} 1... c5 {[%clk 0:02:59.4]} 2. Nc3 {[%clk 0:03:00.2]}
2... d6 {[%clk 0:02:59.5]} 3. d4 {[%clk 0:02:59.7]} 3... cxd4 {[%clk 0:02:59.4]}
4. Qxd4 {[%clk 0:03:00.6]} 4... Nc6 {[%clk 0:02:59.3]} 5. Qd2 {[%clk 0:03:00.7]}
5... g6 {[%clk 0:02:59.4]} 6. b3 {[%clk 0:03:01.6]} 6... Bh6 {[%clk 0:02:59]} 7.
f4 {[%clk 0:03:01]} 7... e5 {[%clk 0:02:58.8]} 8. Nb5 {[%clk 0:02:42]} 8... Bxf4
{[%clk 0:02:02.5]} 9. Qxd6 {[%clk 0:02:41.9]} 9... Qxd6 {[%clk 0:02:00.9]} 10.
Nxd6+ {[%clk 0:02:42.8]} 10... Kd7 {[%clk 0:01:40.4]} 11. Nxf7 {[%clk
0:02:37.6]} 1-0

[Event "Early-Titled-Tuesday-Blitz-January-16-2024"]
[Site "Chess.com"]
[Date "2024.01.16"]
[Round "4"]
[White "Logman74"]
[Black "vanyakuba"]
[Result "0-1"]
[WhiteElo "2490"]
[BlackElo "2315"]
[TimeControl "180+1"]
[EndTime "8:36:36 PST"]
[Termination "vanyakuba won by resignation"]

1. e4 {[%clk 0:03:00.9]} 1... d5 {[%clk 0:02:59.9]} 2. exd5 {[%clk 0:03:00.4]}
2... Qxd5 {[%clk 0:03:00.8]} 3. Nc3 {[%clk 0:03:00.4]} 3... Qa5 {[%clk
0:03:00.9]} 4. d4 {[%clk 0:03:00.6]} 4... Nf6 {[%clk 0:03:00.7]} 5. Nf3 {[%clk
0:02:58.3]} 5... Bg4 {[%clk 0:03:01.2]} 6. h3 {[%clk 0:02:58.1]} 6... Bh5 {[%clk
0:03:01.6]} 7. g4 {[%clk 0:02:58.2]} 7... Bg6 {[%clk 0:03:02.2]} 8. Ne5 {[%clk
0:02:58.7]} 8... e6 {[%clk 0:03:02.8]} 9. Bg2 {[%clk 0:02:58.8]} 9... c6 {[%clk
0:03:00.7]} 10. h4 {[%clk 0:02:58.4]} 10... Nbd7 {[%clk 0:03:00.2]} 11. Nxd7
{[%clk 0:02:52.4]} 11... Kxd7 {[%clk 0:03:01.1]} 12. h5 {[%clk 0:02:49.4]} 12...
Be4 {[%clk 0:02:59.7]} 13. Bxe4 {[%clk 0:02:49]} 13... Nxe4 {[%clk 0:02:59.6]}
14. Qf3 {[%clk 0:02:49.7]} 14... Nxc3 {[%clk 0:02:53.9]} 15. Qxf7+ {[%clk
0:02:33]} 15... Be7 {[%clk 0:02:50.9]} 16. Bd2 {[%clk 0:02:33.6]} 16... Qd5
{[%clk 0:02:43]} 17. O-O {[%clk 0:02:24.1]} 17... Raf8 {[%clk 0:02:14.6]} 18.
Qxg7 {[%clk 0:02:22.5]} 18... Rhg8 {[%clk 0:02:11.8]} 0-1

[Event "Early-Titled-Tuesday-Blitz-January-16-2024"]
[Site "Chess.com"]
[Date "2024.01.16"]
[Round "4"]
[White "Shuvalov"]
[Black "Zampronha1971"]
[Result "0-1"]
[WhiteElo "2516"]
[BlackElo "2347"]
[TimeControl "180+1"]
[EndTime "8:36:36 PST"]
[Termination "Zampronha1971 won by resignation"]

1. d4 {[%clk 0:03:00.9]} 1... Nf6 {[%clk 0:02:58.3]} 2. c4 {[%clk 0:03:00.3]}
2... e6 {[%clk 0:02:55.7]} 3. Nc3 {[%clk 0:02:59.7]} 3... Bb4 {[%clk 0:02:55.1]}
4. e3 {[%clk 0:02:59.5]} 4... c5 {[%clk 0:02:52.8]} 5. Ne2 {[%clk 0:02:52]} 5...
O-O {[%clk 0:02:46.3]} 6. dxc5 {[%clk 0:02:45.4]} 6... Bxc5 {[%clk 0:02:45.8]}
7. Ng3 {[%clk 0:02:43.5]} 7... d5 {[%clk 0:02:41.1]} 8. cxd5 {[%clk 0:02:42.5]}
8... exd5 {[%clk 0:02:41.6]} 9. Be2 {[%clk 0:02:36.5]} 9... Nc6 {[%clk
0:02:36.7]} 10. O-O {[%clk 0:02:35.6]} 10... Be6 {[%clk 0:02:36.6]} 11. Bd2
{[%clk 0:02:30]} 11... Qe7 {[%clk 0:02:35.5]} 12. Na4 {[%clk 0:02:27.8]} 12...
Bd6 {[%clk 0:02:34.6]} 13. Rc1 {[%clk 0:02:22.2]} 13... Rac8 {[%clk 0:02:29.6]}
14. Nc5 {[%clk 0:02:20.4]} 14... Bxc5 {[%clk 0:02:27.8]} 15. Rxc5 {[%clk
0:02:21.3]} 15... Qxc5 {[%clk 0:02:26.1]} 16. Bc3 {[%clk 0:02:18.9]} 16... Qe7
{[%clk 0:02:22.7]} 17. Bd3 {[%clk 0:02:13.2]} 17... Rfd8 {[%clk 0:02:21.3]} 18.
Ne2 {[%clk 0:02:07.9]} 18... Ne4 {[%clk 0:02:17.8]} 0-1

[Event "Early-Titled-Tuesday-Blitz-January-16-2024"]
[Site "Chess.com"]
[Date "2024.01.16"]
[Round "4"]
[White "pavet"]
[Black "Msb2"]
[Result "1/2-1/2"]
[WhiteElo "2784"]
[BlackElo "3056"]
[TimeControl "180+1"]
[EndTime "8:36:50 PST"]
[Termination "Game drawn by agreement"]

1. e4 {[%clk 0:03:00.9]} 1... e6 {[%clk 0:03:00.1]} 2. d4 {[%clk 0:02:58.6]}
2... d5 {[%clk 0:03:00.6]} 3. exd5 {[%clk 0:02:57.2]} 3... exd5 {[%clk
0:03:01.5]} 4. Nf3 {[%clk 0:02:57.6]} 4... Nc6 {[%clk 0:03:02.2]} 5. Bd3 {[%clk
0:02:57.8]} 5... Nb4 {[%clk 0:03:02.6]} 6. Bb5+ {[%clk 0:02:55.8]} 6... c6
{[%clk 0:03:02.6]} 7. Ba4 {[%clk 0:02:56.1]} 7... Bd6 {[%clk 0:03:01.1]} 8. O-O
{[%clk 0:02:55.6]} 8... Ne7 {[%clk 0:03:01.7]} 9. c3 {[%clk 0:02:54.5]} 9... Na6
{[%clk 0:03:01.4]} 10. Bc2 {[%clk 0:02:54.6]} 10... O-O {[%clk 0:03:02]} 11. Bg5
{[%clk 0:02:53.1]} 11... f6 {[%clk 0:02:59.9]} 12. Bh4 {[%clk 0:02:53.4]} 12...
Nc7 {[%clk 0:03:00.6]} 13. Nbd2 {[%clk 0:02:52.9]} 13... Bf5 {[%clk 0:03:01.1]}
14. Re1 {[%clk 0:02:52.3]} 14... Qd7 {[%clk 0:03:01]} 15. Bg3 {[%clk 0:02:52.3]}
15... Bxg3 {[%clk 0:02:57.9]} 16. hxg3 {[%clk 0:02:53.2]} 16... Rae8 {[%clk
0:02:58.2]} 17. Nf1 {[%clk 0:02:52.5]} 17... Bxc2 {[%clk 0:02:57.2]} 18. Qxc2
{[%clk 0:02:52.8]} 18... Nf5 {[%clk 0:02:57.8]} 19. Rxe8 {[%clk 0:02:51.3]}
19... Rxe8 {[%clk 0:02:58.7]} 20. Re1 {[%clk 0:02:51.2]} 20... Rxe1 {[%clk
0:02:57]} 21. Nxe1 {[%clk 0:02:51.2]} 21... Qe6 {[%clk 0:02:57.7]} 22. Nd3
{[%clk 0:02:49.6]} 22... Nd6 {[%clk 0:02:52.6]} 23. Ne3 {[%clk 0:02:47]} 23...
Qe7 {[%clk 0:02:49.2]} 24. Nf4 {[%clk 0:02:43.3]} 24... Ne6 {[%clk 0:02:47.5]}
25. Nxe6 {[%clk 0:02:37.7]} 25... Qxe6 {[%clk 0:02:48.4]} 26. Qa4 {[%clk
0:02:38.2]} 26... a6 {[%clk 0:02:46.3]} 27. Qb4 {[%clk 0:02:38.3]} 27... h5
{[%clk 0:02:43.8]} 28. Qb6 {[%clk 0:02:35.3]} 28... Kh7 {[%clk 0:02:44.2]} 29.
Qc7 {[%clk 0:02:33.1]} 29... Kg6 {[%clk 0:02:40.9]} 30. a3 {[%clk 0:02:27.1]}
1/2-1/2

[Event "Early-Titled-Tuesday-Blitz-January-16-2024"]
[Site "Chess.com"]
[Date "2024.01.16"]
[Round "4"]
[White "jhedigm"]
[Black "Onischuk_V"]
[Result "0-1"]
[WhiteElo "2582"]
[BlackElo "2799"]
[TimeControl "180+1"]
[EndTime "8:37:02 PST"]
[Termination "Onischuk_V won by resignation"]

1. d4 {[%clk 0:03:00.9]} 1... d6 {[%clk 0:03:00.1]} 2. c4 {[%clk 0:03:00.8]}
2... g6 {[%clk 0:03:00.2]} 3. Nc3 {[%clk 0:03:01.3]} 3... Bg7 {[%clk 0:03:00.3]}
4. Nf3 {[%clk 0:03:01.5]} 4... Nc6 {[%clk 0:02:58.9]} 5. h3 {[%clk 0:02:32.6]}
5... e5 {[%clk 0:02:56]} 6. d5 {[%clk 0:02:31.8]} 6... Nce7 {[%clk 0:02:56]} 7.
e4 {[%clk 0:02:30.5]} 7... f5 {[%clk 0:02:56.1]} 8. Bd3 {[%clk 0:02:29.8]} 8...
Nf6 {[%clk 0:02:55.5]} 9. Bg5 {[%clk 0:02:18]} 9... h6 {[%clk 0:02:55]} 10. Bd2
{[%clk 0:02:16.1]} 10... O-O {[%clk 0:02:40.4]} 11. Qc2 {[%clk 0:02:13.4]} 11...
c5 {[%clk 0:02:32.3]} 12. O-O-O {[%clk 0:02:04.5]} 12... a6 {[%clk 0:02:31.4]}
13. Kb1 {[%clk 0:02:03.2]} 13... Bd7 {[%clk 0:02:30.7]} 14. Nh4 {[%clk
0:01:49.9]} 14... f4 {[%clk 0:02:28.1]} 15. g3 {[%clk 0:01:39.8]} 15... g5
{[%clk 0:02:27.5]} 16. Nf5 {[%clk 0:01:37.7]} 16... Nxf5 {[%clk 0:02:26.9]} 17.
exf5 {[%clk 0:01:37.2]} 17... b5 {[%clk 0:02:26.7]} 18. Nxb5 {[%clk 0:01:36.3]}
18... axb5 {[%clk 0:02:26]} 19. cxb5 {[%clk 0:01:34.2]} 0-1

[Event "Early-Titled-Tuesday-Blitz-January-16-2024"]
[Site "Chess.com"]
[Date "2024.01.16"]
[Round "4"]
[White "MokshAD1603"]
[Black "MikaelyanArman"]
[Result "0-1"]
[WhiteElo "2605"]
[BlackElo "2848"]
[TimeControl "180+1"]
[EndTime "8:37:04 PST"]
[Termination "MikaelyanArman won by resignation"]

1. c4 {[%clk 0:02:55]} 1... g6 {[%clk 0:02:59]} 2. Nc3 {[%clk 0:02:51.1]} 2...
Bg7 {[%clk 0:02:59.9]} 3. g3 {[%clk 0:02:51.1]} 3... Nf6 {[%clk 0:02:56.3]} 4.
Bg2 {[%clk 0:02:51.4]} 4... O-O {[%clk 0:02:57]} 5. d3 {[%clk 0:02:50.9]} 5...
c5 {[%clk 0:02:55.6]} 6. e4 {[%clk 0:02:47.9]} 6... Nc6 {[%clk 0:02:55.7]} 7.
Nge2 {[%clk 0:02:48.6]} 7... d6 {[%clk 0:02:56.2]} 8. O-O {[%clk 0:02:49.3]}
8... Bg4 {[%clk 0:02:56.5]} 9. h3 {[%clk 0:02:47.9]} 9... Bxe2 {[%clk
0:02:56.3]} 10. Nxe2 {[%clk 0:02:43.6]} 10... Nd7 {[%clk 0:02:56.1]} 11. Rb1
{[%clk 0:02:42.8]} 11... Rb8 {[%clk 0:02:53.3]} 12. a3 {[%clk 0:02:42]} 12... b5
{[%clk 0:02:33.7]} 13. cxb5 {[%clk 0:02:09.6]} 13... Rxb5 {[%clk 0:02:34.6]} 14.
Qc2 {[%clk 0:01:58.4]} 14... Qb6 {[%clk 0:02:30.3]} 15. Nc3 {[%clk 0:01:54.4]}
15... Bxc3 {[%clk 0:02:26.6]} 16. Qxc3 {[%clk 0:01:55.3]} 16... Nd4 {[%clk
0:02:27.2]} 17. Re1 {[%clk 0:01:49.3]} 17... Rb3 {[%clk 0:02:26.8]} 18. Qc4
{[%clk 0:01:47.6]} 18... Ne5 {[%clk 0:02:26.6]} 19. Qa4 {[%clk 0:01:35.1]} 19...
Nef3+ {[%clk 0:02:26.3]} 0-1

[Event "Early-Titled-Tuesday-Blitz-January-16-2024"]
[Site "Chess.com"]
[Date "2024.01.16"]
[Round "4"]
[White "giomar27"]
[Black "GMAkobianSTL"]
[Result "0-1"]
[WhiteElo "2415"]
[BlackElo "2697"]
[TimeControl "180+1"]
[EndTime "8:37:24 PST"]
[Termination "GMAkobianSTL won by resignation"]

1. d4 {[%clk 0:03:00.9]} 1... e6 {[%clk 0:02:59.6]} 2. Nc3 {[%clk 0:03:00.5]}
2... Bb4 {[%clk 0:02:58.3]} 3. Bf4 {[%clk 0:02:57.1]} 3... Nf6 {[%clk
0:02:57.4]} 4. e3 {[%clk 0:02:55.8]} 4... Nd5 {[%clk 0:02:57.2]} 5. Qd2 {[%clk
0:02:53.6]} 5... Nxf4 {[%clk 0:02:55.7]} 6. exf4 {[%clk 0:02:53.6]} 6... b6
{[%clk 0:02:56]} 7. Nf3 {[%clk 0:02:49.3]} 7... Bb7 {[%clk 0:02:55.9]} 8. Be2
{[%clk 0:02:49.5]} 8... O-O {[%clk 0:02:55.2]} 9. O-O {[%clk 0:02:49.6]} 9...
Nc6 {[%clk 0:02:52.9]} 10. a3 {[%clk 0:02:49.5]} 10... Be7 {[%clk 0:02:52.4]}
11. Ne5 {[%clk 0:02:46.8]} 11... Nxe5 {[%clk 0:02:51.6]} 12. fxe5 {[%clk
0:02:46.1]} 12... d6 {[%clk 0:02:51.5]} 13. f4 {[%clk 0:02:45.4]} 13... dxe5
{[%clk 0:02:51.6]} 14. fxe5 {[%clk 0:02:45.2]} 14... c5 {[%clk 0:02:52.2]} 15.
Rad1 {[%clk 0:02:28.7]} 15... cxd4 {[%clk 0:02:51.7]} 16. Nb5 {[%clk 0:02:26.6]}
16... Bg5 {[%clk 0:02:51.3]} 17. Qd3 {[%clk 0:02:13.8]} 17... Be3+ {[%clk
0:02:50.6]} 18. Kh1 {[%clk 0:02:13.4]} 18... Qg5 {[%clk 0:02:50.3]} 19. Bf3
{[%clk 0:02:06.1]} 19... Bxf3 {[%clk 0:02:49.7]} 20. Rxf3 {[%clk 0:02:07]} 20...
Rad8 {[%clk 0:02:41.5]} 21. Qe4 {[%clk 0:01:59.7]} 21... Rd5 {[%clk 0:02:39.1]}
22. Nxd4 {[%clk 0:01:53]} 22... Rxe5 {[%clk 0:02:34.6]} 23. Qd3 {[%clk
0:01:52.1]} 23... Bxd4 {[%clk 0:02:34.5]} 24. Qxd4 {[%clk 0:01:51.4]} 24... Re2
{[%clk 0:02:28.6]} 25. Rg3 {[%clk 0:01:47.3]} 25... Qe5 {[%clk 0:02:23.2]} 26.
Qd3 {[%clk 0:01:37.3]} 26... Re1+ {[%clk 0:02:22.5]} 0-1

[Event "Early-Titled-Tuesday-Blitz-January-16-2024"]
[Site "Chess.com"]
[Date "2024.01.16"]
[Round "4"]
[White "Kostya0705"]
[Black "Korchmar_Vasiliy"]
[Result "0-1"]
[WhiteElo "2557"]
[BlackElo "2746"]
[TimeControl "180+1"]
[EndTime "8:37:31 PST"]
[Termination "Korchmar_Vasiliy won by resignation"]

1. e4 {[%clk 0:03:00.9]} 1... c5 {[%clk 0:02:56.2]} 2. Nf3 {[%clk 0:03:00.3]}
2... d6 {[%clk 0:02:56.3]} 3. d4 {[%clk 0:03:01.2]} 3... cxd4 {[%clk 0:02:57.2]}
4. Nxd4 {[%clk 0:03:01.9]} 4... Nf6 {[%clk 0:02:57.7]} 5. Nc3 {[%clk 0:03:02.8]}
5... Nc6 {[%clk 0:02:58.3]} 6. f3 {[%clk 0:03:02]} 6... e5 {[%clk 0:02:57.9]} 7.
Nb3 {[%clk 0:03:02.7]} 7... Be7 {[%clk 0:02:56.7]} 8. Be3 {[%clk 0:03:03.2]}
8... O-O {[%clk 0:02:57.1]} 9. Qd2 {[%clk 0:03:03.9]} 9... Be6 {[%clk
0:02:57.3]} 10. O-O-O {[%clk 0:03:03.9]} 10... a5 {[%clk 0:02:57.9]} 11. Bb5
{[%clk 0:03:04.5]} 11... Nb4 {[%clk 0:02:58.5]} 12. Kb1 {[%clk 0:03:03.7]} 12...
a4 {[%clk 0:02:55.2]} 13. Bxa4 {[%clk 0:02:56.8]} 13... Nxa2 {[%clk 0:02:52]}
14. Nxa2 {[%clk 0:02:34.6]} 14... Rxa4 {[%clk 0:02:50.7]} 15. Nc3 {[%clk
0:02:35.5]} 15... Ra6 {[%clk 0:02:46]} 16. Nd5 {[%clk 0:02:33.1]} 16... Nxd5
{[%clk 0:02:34.6]} 17. exd5 {[%clk 0:02:33.3]} 17... Bf5 {[%clk 0:02:12.9]} 18.
h4 {[%clk 0:02:33.2]} 18... h5 {[%clk 0:01:59.2]} 19. Rhg1 {[%clk 0:02:27]}
19... Qd7 {[%clk 0:01:58.3]} 20. g4 {[%clk 0:02:13.1]} 20... hxg4 {[%clk
0:01:59.2]} 21. Qg2 {[%clk 0:02:12.7]} 21... Rc8 {[%clk 0:01:43.5]} 22. Rd2
{[%clk 0:02:10.5]} 22... Qa4 {[%clk 0:01:41.1]} 0-1

[Event "Early-Titled-Tuesday-Blitz-January-16-2024"]
[Site "Chess.com"]
[Date "2024.01.16"]
[Round "4"]
[White "noblerone"]
[Black "mbojan"]
[Result "0-1"]
[WhiteElo "2512"]
[BlackElo "2882"]
[TimeControl "180+1"]
[EndTime "8:38:08 PST"]
[Termination "mbojan won by resignation"]

1. d4 {[%clk 0:02:56.4]} 1... Nf6 {[%clk 0:02:59.8]} 2. c4 {[%clk 0:02:55.9]}
2... g6 {[%clk 0:03:00.2]} 3. Nc3 {[%clk 0:02:56.2]} 3... Bg7 {[%clk 0:03:00.9]}
4. Nf3 {[%clk 0:02:56.1]} 4... O-O {[%clk 0:03:01.4]} 5. Bg5 {[%clk 0:02:56.5]}
5... h6 {[%clk 0:03:00.2]} 6. Bh4 {[%clk 0:02:56.1]} 6... d6 {[%clk 0:03:00]} 7.
e3 {[%clk 0:02:55.6]} 7... g5 {[%clk 0:03:00.4]} 8. Bg3 {[%clk 0:02:55.6]} 8...
Nh5 {[%clk 0:03:01]} 9. Be2 {[%clk 0:02:55.5]} 9... Nxg3 {[%clk 0:03:01.4]} 10.
hxg3 {[%clk 0:02:55.6]} 10... e6 {[%clk 0:03:00.5]} 11. O-O {[%clk 0:02:54.5]}
11... Nd7 {[%clk 0:03:00.5]} 12. Rc1 {[%clk 0:02:52.5]} 12... Qe7 {[%clk
0:03:00.8]} 13. b4 {[%clk 0:02:45.8]} 13... b6 {[%clk 0:02:46.3]} 14. Nd2 {[%clk
0:02:34.6]} 14... Bb7 {[%clk 0:02:46.6]} 15. Bf3 {[%clk 0:02:35.2]} 15... Bxf3
{[%clk 0:02:46.9]} 16. Qxf3 {[%clk 0:02:36.1]} 16... a5 {[%clk 0:02:47.5]} 17.
b5 {[%clk 0:02:23.4]} 17... f5 {[%clk 0:02:47.7]} 18. Qc6 {[%clk 0:02:05.5]}
18... Rac8 {[%clk 0:02:40]} 19. Na4 {[%clk 0:01:58]} 19... g4 {[%clk 0:02:23.2]}
20. c5 {[%clk 0:01:42.7]} 20... dxc5 {[%clk 0:02:24.1]} 21. dxc5 {[%clk
0:01:43.1]} 21... Ne5 {[%clk 0:02:24.6]} 22. Qb7 {[%clk 0:01:26.8]} 22... Rb8
{[%clk 0:02:24.7]} 23. Qa6 {[%clk 0:00:55.8]} 23... Ra8 {[%clk 0:02:25]} 24.
cxb6 {[%clk 0:00:55.8]} 24... Rxa6 {[%clk 0:02:25]} 25. bxa6 {[%clk 0:00:56.1]}
25... cxb6 {[%clk 0:02:25.6]} 26. Nxb6 {[%clk 0:00:57]} 26... Qd6 {[%clk
0:02:26.2]} 27. Ndc4 {[%clk 0:00:53.9]} 27... Nxc4 {[%clk 0:02:26.5]} 28. Nxc4
{[%clk 0:00:53.4]} 28... Qxa6 {[%clk 0:02:27.4]} 29. Rfd1 {[%clk 0:00:53.1]}
29... Rc8 {[%clk 0:02:27.4]} 0-1

[Event "Early-Titled-Tuesday-Blitz-January-16-2024"]
[Site "Chess.com"]
[Date "2024.01.16"]
[Round "4"]
[White "JiiHart"]
[Black "stepanosinovsky"]
[Result "0-1"]
[WhiteElo "2143"]
[BlackElo "2389"]
[TimeControl "180+1"]
[EndTime "8:38:16 PST"]
[Termination "stepanosinovsky won by resignation"]

1. e4 {[%clk 0:03:00.9]} 1... e5 {[%clk 0:02:59.3]} 2. Nf3 {[%clk 0:03:00]} 2...
Nc6 {[%clk 0:02:59.3]} 3. Bc4 {[%clk 0:02:59]} 3... Nf6 {[%clk 0:02:59.1]} 4.
Ng5 {[%clk 0:02:54.1]} 4... d5 {[%clk 0:02:59.6]} 5. exd5 {[%clk 0:02:54.5]}
5... b5 {[%clk 0:03:00.1]} 6. Bxb5 {[%clk 0:02:54.1]} 6... Qxd5 {[%clk
0:03:00.2]} 7. Bf1 {[%clk 0:02:53.3]} 7... Bb7 {[%clk 0:02:09.3]} 8. Nc3 {[%clk
0:02:50]} 8... Qd7 {[%clk 0:02:08.5]} 9. Bc4 {[%clk 0:02:37.8]} 9... Nd8 {[%clk
0:02:07.3]} 10. Qe2 {[%clk 0:02:14.9]} 10... Bd6 {[%clk 0:01:57.2]} 11. d4
{[%clk 0:01:52.7]} 11... O-O {[%clk 0:01:50.2]} 12. dxe5 {[%clk 0:01:51.6]}
12... Bxe5 {[%clk 0:01:37.3]} 13. Bd2 {[%clk 0:01:21.2]} 13... Re8 {[%clk
0:01:21.5]} 14. Qd3 {[%clk 0:01:20.5]} 14... Bxc3+ {[%clk 0:01:18.1]} 0-1

[Event "Early-Titled-Tuesday-Blitz-January-16-2024"]
[Site "Chess.com"]
[Date "2024.01.16"]
[Round "4"]
[White "HajiyevKanan"]
[Black "Byniolus"]
[Result "0-1"]
[WhiteElo "2562"]
[BlackElo "2762"]
[TimeControl "180+1"]
[EndTime "8:38:38 PST"]
[Termination "Byniolus won by resignation"]

1. d4 {[%clk 0:03:00.9]} 1... d6 {[%clk 0:03:00.1]} 2. Nf3 {[%clk 0:03:01.2]}
2... Bg4 {[%clk 0:03:00.1]} 3. g3 {[%clk 0:03:01.4]} 3... Bxf3 {[%clk
0:03:00.1]} 4. exf3 {[%clk 0:03:02.3]} 4... e6 {[%clk 0:02:59.5]} 5. Bg2 {[%clk
0:03:02.7]} 5... c6 {[%clk 0:02:59.8]} 6. O-O {[%clk 0:03:03.3]} 6... g6 {[%clk
0:03:00]} 7. f4 {[%clk 0:03:04]} 7... Bg7 {[%clk 0:03:00.5]} 8. Re1 {[%clk
0:03:04.8]} 8... Ne7 {[%clk 0:03:00.8]} 9. c3 {[%clk 0:03:05.5]} 9... O-O {[%clk
0:03:01.3]} 10. Nd2 {[%clk 0:03:06]} 10... Nd7 {[%clk 0:03:01.5]} 11. Ne4 {[%clk
0:03:06.3]} 11... Nf6 {[%clk 0:02:59.9]} 12. Nxf6+ {[%clk 0:03:02]} 12... Bxf6
{[%clk 0:03:00.8]} 13. Be3 {[%clk 0:03:02]} 13... d5 {[%clk 0:02:59.3]} 14. h4
{[%clk 0:03:02.3]} 14... h5 {[%clk 0:02:57.8]} 15. Qb3 {[%clk 0:03:02.2]} 15...
Qb6 {[%clk 0:02:57.4]} 16. Qxb6 {[%clk 0:03:00.7]} 16... axb6 {[%clk 0:02:58.3]}
17. a4 {[%clk 0:03:00.1]} 17... Nf5 {[%clk 0:02:52.9]} 18. Bd2 {[%clk
0:02:55.4]} 18... Ra7 {[%clk 0:02:42.7]} 19. b3 {[%clk 0:02:53.2]} 19... Rc8
{[%clk 0:02:41.7]} 20. Ra2 {[%clk 0:02:47]} 20... b5 {[%clk 0:02:31.6]} 21. Rea1
{[%clk 0:02:39.9]} 21... b4 {[%clk 0:02:28.9]} 22. cxb4 {[%clk 0:02:18.3]} 22...
Bxd4 {[%clk 0:02:27]} 23. Rd1 {[%clk 0:02:09.9]} 23... Nxg3 {[%clk 0:02:20.9]}
24. Be1 {[%clk 0:01:48.6]} 24... Nf5 {[%clk 0:02:20.1]} 25. Rc2 {[%clk
0:01:44.5]} 25... Bf6 {[%clk 0:02:12.9]} 26. b5 {[%clk 0:01:40.6]} 26... Nd4
{[%clk 0:01:37.6]} 0-1

[Event "Early-Titled-Tuesday-Blitz-January-16-2024"]
[Site "Chess.com"]
[Date "2024.01.16"]
[Round "4"]
[White "FMCASTE"]
[Black "KSho99"]
[Result "1-0"]
[WhiteElo "2454"]
[BlackElo "2190"]
[TimeControl "180+1"]
[EndTime "8:39:02 PST"]
[Termination "FMCASTE won by resignation"]

1. d4 {[%clk 0:02:53.5]} 1... e6 {[%clk 0:02:59.8]} 2. Bf4 {[%clk 0:02:52.5]}
2... f5 {[%clk 0:02:56.8]} 3. e3 {[%clk 0:02:51.8]} 3... Nf6 {[%clk 0:02:57.1]}
4. Nc3 {[%clk 0:02:50.7]} 4... d6 {[%clk 0:02:55.7]} 5. h4 {[%clk 0:02:50.1]}
5... Be7 {[%clk 0:02:44.5]} 6. h5 {[%clk 0:02:49.3]} 6... Nbd7 {[%clk
0:02:23.9]} 7. Nf3 {[%clk 0:02:44.3]} 7... h6 {[%clk 0:02:12.2]} 8. Qe2 {[%clk
0:02:40.9]} 8... b6 {[%clk 0:01:46.4]} 9. O-O-O {[%clk 0:02:37.8]} 9... Bb7
{[%clk 0:01:46.4]} 10. Nh4 {[%clk 0:02:20.9]} 10... O-O {[%clk 0:01:33.9]} 11.
f3 {[%clk 0:02:19.7]} 11... Qe8 {[%clk 0:01:29.3]} 12. Ng6 {[%clk 0:02:18.9]}
12... Rf7 {[%clk 0:01:29.2]} 13. Qc4 {[%clk 0:02:14.6]} 13... Nd5 {[%clk
0:01:21.1]} 14. e4 {[%clk 0:02:03.7]} 14... Nxf4 {[%clk 0:01:17.7]} 15. Nxf4
{[%clk 0:02:04.6]} 15... Bg5 {[%clk 0:01:15.1]} 16. g3 {[%clk 0:02:01]} 16... e5
{[%clk 0:01:09.5]} 17. dxe5 {[%clk 0:01:55.4]} 17... dxe5 {[%clk 0:01:09.6]} 18.
Qxc7 {[%clk 0:01:55.5]} 18... Nc5 {[%clk 0:00:55.5]} 19. Bc4 {[%clk 0:01:53.8]}
19... Ne6 {[%clk 0:00:39]} 20. Qxe5 {[%clk 0:01:46.2]} 20... Rc8 {[%clk
0:00:27.7]} 21. Bxe6 {[%clk 0:01:42.6]} 1-0

[Event "Early-Titled-Tuesday-Blitz-January-16-2024"]
[Site "Chess.com"]
[Date "2024.01.16"]
[Round "4"]
[White "UK_23"]
[Black "DefiantChair"]
[Result "0-1"]
[WhiteElo "2368"]
[BlackElo "2565"]
[TimeControl "180+1"]
[EndTime "8:39:07 PST"]
[Termination "DefiantChair won by resignation"]

1. e4 {[%clk 0:03:00.9]} 1... c5 {[%clk 0:02:59.6]} 2. Nf3 {[%clk 0:03:00.9]}
2... d6 {[%clk 0:03:00.1]} 3. d4 {[%clk 0:03:00.8]} 3... cxd4 {[%clk 0:03:01]}
4. Qxd4 {[%clk 0:03:01.5]} 4... Nf6 {[%clk 0:03:01.7]} 5. Be2 {[%clk 0:03:00.9]}
5... Nc6 {[%clk 0:03:01.4]} 6. Qe3 {[%clk 0:03:01]} 6... g6 {[%clk 0:03:01]} 7.
O-O {[%clk 0:03:01.2]} 7... Bg7 {[%clk 0:03:01.2]} 8. Rd1 {[%clk 0:03:01.9]}
8... Qc7 {[%clk 0:02:57.4]} 9. h3 {[%clk 0:03:01.9]} 9... O-O {[%clk 0:02:56.9]}
10. c4 {[%clk 0:03:02.3]} 10... Ne5 {[%clk 0:02:54.8]} 11. Nxe5 {[%clk 0:03:01]}
11... dxe5 {[%clk 0:02:54.7]} 12. b3 {[%clk 0:03:00.3]} 12... Nd7 {[%clk
0:02:53.9]} 13. Nc3 {[%clk 0:03:00.1]} 13... a6 {[%clk 0:01:45.8]} 14. Nd5
{[%clk 0:02:57.3]} 14... Qd8 {[%clk 0:01:45.9]} 15. Ba3 {[%clk 0:02:55.4]} 15...
Re8 {[%clk 0:01:42.3]} 16. Rd2 {[%clk 0:02:48.3]} 16... e6 {[%clk 0:01:32.3]}
17. Nc3 {[%clk 0:02:44.6]} 17... Qh4 {[%clk 0:01:31.4]} 18. g3 {[%clk
0:02:27.2]} 18... Qxh3 {[%clk 0:01:28.3]} 19. Bf1 {[%clk 0:02:27.6]} 19... Qh5
{[%clk 0:01:27.4]} 20. Be2 {[%clk 0:02:26.8]} 20... Qh6 {[%clk 0:01:27.3]} 21.
Qxh6 {[%clk 0:02:18.6]} 21... Bxh6 {[%clk 0:01:28.2]} 22. Rd3 {[%clk 0:02:19.1]}
22... Bf8 {[%clk 0:01:22.2]} 23. Bxf8 {[%clk 0:02:14.9]} 23... Kxf8 {[%clk
0:01:23.1]} 24. Rad1 {[%clk 0:02:15.2]} 24... Ke7 {[%clk 0:01:23.2]} 25. a4
{[%clk 0:02:04.7]} 25... Nc5 {[%clk 0:01:20.7]} 26. Rd6 {[%clk 0:02:02.3]} 26...
Nxb3 {[%clk 0:01:19.4]} 27. Rb6 {[%clk 0:02:03]} 27... Nd4 {[%clk 0:01:19.3]}
28. Bf1 {[%clk 0:02:00.7]} 28... Rd8 {[%clk 0:01:18.9]} 29. Kg2 {[%clk
0:01:59.2]} 29... Kd7 {[%clk 0:01:19]} 30. a5 {[%clk 0:01:58.6]} 30... Kc7
{[%clk 0:01:19.3]} 31. Na4 {[%clk 0:01:55.6]} 31... Bd7 {[%clk 0:01:15.3]} 32.
Nc5 {[%clk 0:01:55.8]} 32... Bc6 {[%clk 0:01:15.5]} 33. f3 {[%clk 0:01:54.5]}
33... Nc2 {[%clk 0:01:13.3]} 34. Rdb1 {[%clk 0:01:50.9]} 34... Rab8 {[%clk
0:00:57]} 35. R1b2 {[%clk 0:01:48.3]} 35... Ne3+ {[%clk 0:00:55.5]} 36. Kf2
{[%clk 0:01:47.9]} 36... Nd1+ {[%clk 0:00:55.2]} 0-1